bitfinex/quotes_SOLUSD_20250118
["timestamp","ask_amount","ask_price","bid_price","bid_amount"]
[1737202553479,0.03,241.06,241.05,32.39496066]
[1737202553686,0.03,241.06,241.05,20.0]
[1737202553987,0.03,241.06,241.05,24.1485]
[1737202554889,0.03,241.06,241.04,20.0]
[1737202555487,0.03,241.06,241.05,20.0]
[1737202556696,0.03,241.06,241.05,24.1485]
[1737202556888,0.03,241.06,241.05,4.1485]
[1737202557996,0.03,241.06,241.05,20.0]
[1737202559785,0.03,241.06,241.04,4.1486]
[1737202560501,0.03,241.06,241.05,20.0]
[1737202560880,0.03,241.06,241.01,23.97222672]
[1737202561082,0.03,241.06,240.99,23.97242672]
[1737202561998,19.82302672,241.0,240.91,0.063]
[1737202562203,19.82302672,241.0,240.91,12.423]
[1737202562804,19.82302672,241.0,240.94,4.1503]
[1737202563302,19.82302672,241.03,240.97,24.2128]
[1737202563606,19.82302672,241.05,240.97,4.2128]
[1737202563899,0.03,241.06,240.97,4.2128]
[1737202563900,19.82302672,241.03,240.97,4.2128]
[1737202564081,0.03,241.06,240.99,20.0]
[1737202564280,0.03,241.06,241.01,20.0]
[1737202564782,0.03,241.06,241.02,4.149]
[1737202566509,0.03,241.06,241.05,20.0]
[1737202568014,0.03,241.06,240.98,33.82302672]
[1737202568196,19.82302672,241.03,240.97,4.2128]
[1737202569013,19.82302672,241.03,240.99,20.0]
[1737202569710,19.82302672,241.01,240.97,0.063]
[1737202570494,23.97222672,241.01,240.97,0.063]
[1737202571109,19.82302672,241.01,240.97,0.063]
[1737202571421,23.97222672,241.01,240.97,0.063]
[1737202572024,23.776884,241.0,240.97,0.063]
[1737202572524,23.97222672,241.01,240.97,0.063]
[1737202575444,16.54765368,241.01,240.97,0.063]
[1737202575632,23.776884,240.98,240.97,0.063]
[1737202576220,12.39845368,240.99,240.97,0.063]
[1737202577142,23.776884,240.98,240.97,0.063]
[1737202577438,27.926584,240.98,240.97,0.063]
[1737202577645,4.1497,240.98,240.97,0.063]
[1737202577942,27.926584,240.98,240.97,0.063]
[1737202578239,4.1497,240.98,240.97,0.063]
[1737202578824,12.39845368,241.01,240.97,0.063]
[1737202579624,16.54775368,241.01,240.97,0.063]
[1737202580628,4.1493,241.01,240.97,0.063]
[1737202580829,12.39845368,241.0,240.97,0.063]
[1737202581927,16.54785368,241.0,240.97,0.063]
[1737202582957,12.39845368,241.0,240.97,0.063]
[1737202584353,16.54785368,241.0,240.97,0.063]
[1737202585353,12.39845368,240.98,240.97,0.063]
[1737202585652,16.54785368,241.0,240.97,0.063]
[1737202587449,12.39845368,241.0,240.97,0.063]
[1737202589343,16.54785368,241.0,240.97,0.063]
[1737202589740,12.39845368,240.98,240.97,0.063]
[1737202590051,0.03,241.06,240.97,16.61125368]
[1737202590253,0.03,241.06,240.99,12.39845368]
[1737202590461,12.42845368,241.06,240.97,16.61125368]
[1737202591142,0.03,241.06,241.02,20.0]
[1737202591334,0.03,241.06,241.02,4.149]
[1737202591651,0.03,241.06,241.03,12.39845368]
[1737202592029,0.03,241.06,241.05,32.39845368]
[1737202592430,0.03,241.06,241.03,12.39845368]
[1737202592840,0.03,241.06,241.05,32.39845368]
[1737202593859,0.03,241.06,241.05,36.54695368]
[1737202594155,0.03,241.06,241.05,60.32383768]
[1737202594538,0.03,241.06,241.05,74.32383768]
[1737202595050,0.03,241.11,241.09,20.0]
[1737202595245,0.03,241.11,241.1,36.17533768]
[1737202595635,0.03,241.11,241.1,40.32293768]
[1737202595961,0.03,241.11,241.1,42.93293768]
[1737202596947,0.03,241.11,241.1,19.15605368]
[1737202597740,0.03,241.11,241.1,15.00845368]
[1737202597949,0.03,241.11,241.1,2.61]
[1737202598156,0.03,241.11,241.1,32.39845368]
[1737202599545,0.03,241.11,241.08,16.54635368]
[1737202599746,0.03,241.11,241.1,12.39845368]
[1737202599953,0.03,241.11,241.08,36.54635368]
[1737202600257,0.03,241.11,240.97,21.43438403]
[1737202600258,0.03,241.11,241.06,12.39845368]
[1737202600457,0.03,241.11,241.07,12.35]
[1737202600754,0.03,241.11,241.06,12.39845368]
[1737202601340,0.03,241.11,241.07,4.1481]
[1737202602158,12.42845368,241.11,241.04,12.39845368]
[1737202602455,12.39845368,241.09,241.0,12.39845368]
[1737202602640,12.39845368,241.07,240.98,12.39845368]
[1737202602831,12.39845368,241.05,240.97,0.063]
[1737202604062,16.54695368,241.05,240.97,4.2128]
[1737202604866,12.39845368,241.07,240.98,12.39845368]
[1737202605160,12.39845368,241.09,241.0,12.39845368]
[1737202605460,12.39845368,241.09,241.02,16.54735368]
[1737202605755,32.39845368,241.08,240.97,0.063]
[1737202605962,12.39845368,241.03,240.97,0.063]
[1737202606258,12.39845368,241.01,240.97,0.063]
[1737202606455,23.776884,241.02,240.97,0.063]
[1737202606660,23.776884,240.98,240.97,0.063]
[1737202607450,27.926584,240.98,240.97,0.063]
[1737202607851,4.1497,240.98,240.97,0.063]
[1737202608650,27.926584,240.98,240.97,0.063]
[1737202609046,20.0,240.94,240.91,0.063]
[1737202609244,44.39773768,240.92,240.91,0.063]
[1737202609568,4.1516,240.87,240.75,12.39845368]
[1737202609745,20.62085368,240.92,240.72,0.063]
[1737202609746,12.39845368,240.88,240.81,12.46145368]
[1737202610647,12.39845368,240.88,240.81,16.61405368]
[1737202611177,12.39845368,240.9,240.81,12.46145368]
[1737202611477,12.39845368,240.88,240.81,0.063]
[1737202612172,12.39845368,240.9,240.83,12.39845368]
[1737202612471,12.39845368,240.94,240.88,20.0]
[1737202612679,8.2224,240.98,240.88,20.0]
[1737202612978,12.39845368,240.96,240.88,20.0]
[1737202613272,12.3721,240.98,240.89,12.39845368]
[1737202613456,19.83954961,241.01,240.93,19.83954961]
[1737202613656,30.20984961,241.08,240.93,19.83954961]
[1737202613657,10.3703,241.08,240.93,19.83954961]
[1737202613865,19.83954961,241.02,240.95,19.83954961]
[1737202614168,19.83954961,240.97,240.89,19.83954961]
[1737202614676,19.83954961,240.99,240.91,19.83954961]
[1737202615058,19.83954961,240.97,240.89,19.83954961]
[1737202615260,34.148084,241.05,240.82,0.063]
[1737202615454,19.83954961,240.97,240.89,19.83954961]
[1737202615771,19.83954961,240.95,240.87,19.83954961]
[1737202616470,23.98984961,240.95,240.85,19.83954961]
[1737202616659,19.83954961,240.93,240.85,19.83954961]
[1737202618377,19.83954961,240.93,240.85,23.99124961]
[1737202619085,4.1505,240.94,240.85,23.99124961]
[1737202619267,19.83954961,240.96,240.87,19.83954961]
[1737202619768,23.98964961,240.96,240.87,19.83954961]
[1737202619970,23.98964961,240.96,240.87,23.99104961]
[1737202620381,19.83954961,240.94,240.87,19.83954961]
[1737202620680,19.83954961,240.88,240.82,0.063]
[1737202621985,23.99104961,240.88,240.82,0.063]
[1737202622355,19.83954961,240.9,240.87,0.063]
[1737202623470,19.83954961,240.88,240.87,0.063]
[1737202624485,23.99074961,240.9,240.87,0.063]
[1737202626677,19.83954961,240.88,240.87,0.063]
[1737202626867,43.61643361,240.88,240.87,0.063]
[1737202627259,23.776884,240.87,240.82,0.063]
[1737202627474,43.61643361,240.83,240.82,0.063]
[1737202628459,23.99184961,240.83,240.82,0.063]
[1737202629266,32.21424961,240.83,240.82,0.063]
[1737202629470,12.3747,240.83,240.82,0.063]
[1737202629671,12.3747,240.83,240.79,0.03]
[1737202629873,63.61643361,240.8,240.79,0.03]
[1737202630479,67.76923361,240.8,240.79,0.03]
[1737202632581,23.776884,240.75,240.72,0.063]
[1737202632788,19.83954961,240.76,240.72,0.063]
[1737202632968,19.83954961,240.79,240.72,0.063]
[1737202633366,12.42095225,240.79,240.72,0.063]
[1737202633870,12.42095225,240.79,240.72,4.2171]
[1737202634176,12.42095225,240.79,240.73,20.0]
[1737202634375,4.1514,240.88,240.75,20.0]
[1737202634680,4.1514,240.88,240.73,20.0]
[1737202634681,12.42095225,240.91,240.83,12.42095225]
[1737202636093,23.776884,240.84,240.75,12.42095225]
[1737202636386,12.42095225,240.8,240.73,12.42095225]
[1737202636590,16.611,240.91,240.75,12.42095225]
[1737202636591,12.42095225,240.82,240.75,12.42095225]
[1737202636775,23.776884,240.81,240.73,12.42095225]
[1737202637094,12.42095225,240.8,240.72,4.2171]
[1737202637387,19.87131471,240.8,240.72,24.08841471]
[1737202637698,19.87131471,240.78,240.72,0.063]
[1737202637994,19.87131471,240.78,240.72,4.2171]
[1737202638196,24.02441471,240.78,240.72,0.063]
[1737202638488,23.776884,240.73,240.72,0.063]
[1737202638873,19.87131471,240.77,240.72,0.063]
[1737202639080,19.87131471,240.8,240.73,19.87131471]
[1737202639280,19.87131471,240.82,240.73,19.87131471]
[1737202639671,19.87131471,240.82,240.76,20.0]
[1737202639872,19.87131471,240.84,240.76,20.0]
[1737202640097,19.87131471,240.84,240.76,24.1534]
[1737202640284,19.87131471,240.87,240.77,19.87131471]
[1737202640595,23.776884,240.84,240.77,19.87131471]
[1737202640992,23.776884,240.84,240.72,0.063]
[1737202640993,23.776884,240.78,240.72,0.063]
[1737202641170,19.87131471,240.77,240.72,0.063]
[1737202641373,19.87131471,240.79,240.72,4.2171]
[1737202642195,23.776884,240.81,240.72,4.2171]
[1737202642196,19.87131471,240.81,240.72,4.2171]
[1737202642692,4.1517,240.86,240.73,19.87131471]
[1737202642884,19.87131471,240.81,240.72,4.2171]
[1737202643191,19.87131471,240.81,240.72,24.08841471]
[1737202643605,23.776884,240.82,240.74,19.87131471]
[1737202644809,23.776884,240.82,240.74,24.02511471]
[1737202645792,19.87131471,240.83,240.77,20.0]
[1737202646001,19.87131471,240.91,240.82,19.87131471]
[1737202646180,19.87131471,240.89,240.8,19.87131471]
[1737202646776,19.87131471,240.89,240.83,20.0]
[1737202646999,19.93431471,240.91,240.83,20.0]
[1737202647299,19.87131471,240.87,240.78,19.87131471]
[1737202648497,19.93431471,240.91,240.82,19.87131471]
[1737202650104,19.93431471,240.91,240.83,4.1523]
[1737202650605,19.87131471,240.87,240.78,19.87131471]
[1737202650791,19.87131471,240.87,240.76,19.87131471]
[1737202650988,19.87131471,240.87,240.79,20.0]
[1737202651186,19.87131471,240.87,240.78,19.87131471]
[1737202651391,19.87131471,240.89,240.8,19.87131471]
[1737202652106,19.87131471,240.89,240.81,4.1526]
[1737202652308,19.93431471,240.91,240.82,19.87131471]
[1737202654786,0.063,240.91,240.87,20.0]
[1737202655110,0.063,240.91,240.88,19.87131471]
[1737202655610,0.063,240.91,240.86,19.87131471]
[1737202656497,0.063,240.91,240.87,4.1516]
[1737202656811,0.063,240.91,240.87,20.0]
[1737202657003,19.87131471,240.88,240.75,0.6227218]
[1737202657202,34.9122,240.9,240.72,5.51035906]
[1737202657203,19.87131471,240.84,240.77,12.36]
[1737202657404,23.776884,240.79,240.72,0.063]
[1737202658710,12.42450793,240.75,240.72,0.063]
[1737202659092,12.42450793,240.77,240.72,0.063]
[1737202659287,19.87748175,240.77,240.72,0.063]
[1737202660093,19.87748175,240.81,240.72,0.063]
[1737202660298,19.87748175,240.81,240.72,4.217]
[1737202660704,23.776884,240.83,240.73,19.87748175]
[1737202660905,19.87748175,240.82,240.73,19.87748175]
[1737202661216,19.87748175,240.8,240.72,4.217]
[1737202661792,19.87748175,240.78,240.72,4.217]
[1737202662992,19.87748175,240.8,240.72,4.217]
[1737202663197,19.87748175,240.84,240.78,20.0]
[1737202664408,19.87748175,240.84,240.79,4.1529]
[1737202665413,19.87748175,240.8,240.75,4.1535]
[1737202665614,19.87748175,240.8,240.72,0.063]
[1737202665615,19.87748175,240.8,240.73,4.1539]
[1737202666007,19.87748175,240.8,240.74,20.0]
[1737202666213,19.87748175,240.82,240.73,19.87748175]
[1737202666426,19.87748175,240.82,240.74,4.1538]
[1737202666619,19.87748175,240.76,240.72,0.063]
[1737202666928,19.87748175,240.82,240.72,24.09458175]
[1737202667126,19.87748175,240.84,240.75,20.0]
[1737202667305,19.87748175,240.86,240.81,20.0]
[1737202667504,19.87748175,240.88,240.83,20.0]
[1737202668020,19.87748175,240.88,240.73,7.0419897]
[1737202668021,19.87748175,240.88,240.77,20.0]
[1737202668217,19.87748175,240.88,240.83,20.0]
[1737202668528,0.063,240.91,240.84,4.1521]
[1737202669222,0.063,240.91,240.84,24.02958175]
[1737202669618,19.87748175,240.9,240.84,4.1521]
[1737202670802,0.063,240.91,240.79,0.03]
[1737202670803,19.87748175,240.87,240.83,20.0]
[1737202671220,19.87748175,240.89,240.83,20.0]
[1737202671519,4.214,240.91,240.8,24.03028175]
[1737202671822,19.87748175,240.88,240.8,24.03028175]
[1737202673897,19.94048175,240.91,240.82,19.87748175]
[1737202674103,0.063,240.91,240.87,20.0]
[1737202674407,0.063,240.91,240.89,20.0]
[1737202675213,0.063,240.91,240.9,44.02858175]
[1737202675608,0.063,240.91,240.9,24.1511]
[1737202677723,0.063,240.91,240.9,44.02858175]
[1737202679525,0.063,240.91,240.9,44.65105897]
[1737202680004,0.0001,240.91,240.9,68.42794297]
[1737202680203,7.9762,241.09,240.94,20.0]
[1737202680412,21.50488175,241.09,241.0,19.87748175]
[1737202680612,19.87748175,241.07,240.98,19.87748175]
[1737202680818,19.87748175,241.05,240.98,19.87748175]
[1737202681030,23.776884,241.08,240.98,19.87748175]
[1737202681209,19.87748175,241.05,240.98,19.87748175]
[1737202681605,19.87748175,241.01,240.94,19.87748175]
[1737202681808,19.87748175,240.99,240.92,19.87748175]
[1737202682001,19.87748175,240.97,240.88,19.87748175]
[1737202682407,19.87748175,240.97,240.9,19.87748175]
[1737202682613,19.87748175,240.99,240.9,19.87748175]
[1737202683125,0.063,240.91,240.9,19.87748175]
[1737202683517,0.063,240.91,240.86,14.5311]
[1737202683702,0.063,240.91,240.9,19.87748175]
[1737202685837,0.063,240.91,240.9,24.02858175]
[1737202688132,0.063,240.91,240.88,19.87748175]
[1737202689026,0.063,240.91,240.86,19.87748175]
[1737202689231,0.063,240.91,240.9,19.87748175]
[1737202690132,0.063,240.91,240.9,24.02858175]
[1737202692145,0.063,240.91,240.88,19.87748175]
[1737202693951,0.063,240.91,240.89,4.1512]
[1737202694839,0.063,240.91,240.9,19.87748175]
[1737202695745,0.063,240.91,240.9,19.90748175]
[1737202695949,0.063,240.91,240.9,24.05858175]
[1737202696448,0.063,240.96,240.93,20.0]
[1737202696652,0.063,240.96,240.95,19.87748175]
[1737202697940,0.063,240.96,240.95,24.02768175]
[1737202700161,1.5983,241.08,240.95,34.40318175]
[1737202700451,1.5983,241.08,241.0,19.87748175]
[1737202700642,1.5983,241.08,241.02,19.87748175]
[1737202700836,0.03,241.09,241.06,19.87748175]
[1737202701554,0.03,241.09,241.0,0.6220849]
[1737202701555,0.03,241.09,241.08,19.87748175]
[1737202701849,0.0001,241.09,241.08,63.5318475]
[1737202702150,0.0001,241.09,241.05,0.6219098]
[1737202702336,19.87748175,241.06,240.96,19.87748175]
[1737202702531,19.87748175,241.01,240.92,19.87748175]
[1737202703465,21.47578175,241.08,240.9,0.03]
[1737202703466,19.87748175,240.96,240.9,0.03]
[1737202703649,19.87748175,240.98,240.9,0.03]
[1737202704143,19.87748175,240.98,240.9,4.181]
[1737202704742,19.87748175,240.98,240.9,24.05848175]
[1737202704938,19.87748175,240.96,240.9,0.03]
[1737202705140,19.87748175,240.92,240.9,0.03]
[1737202707562,19.94048175,240.92,240.9,0.03]
[1737202708357,23.776884,240.91,240.9,0.03]
[1737202709458,43.776884,240.87,240.79,0.03]
[1737202709643,19.87748175,240.82,240.79,0.03]
[1737202709843,19.87748175,240.8,240.79,0.03]
[1737202710452,45.18266575,240.8,240.79,0.03]
[1737202711059,21.40578175,240.8,240.79,0.03]
[1737202712163,19.87748175,240.82,240.79,0.03]
[1737202714662,19.87748175,240.84,240.79,0.03]
[1737202718060,19.87748175,240.82,240.79,0.03]
[1737202718370,19.87748175,240.8,240.79,0.03]
[1737202720367,19.87748175,240.82,240.79,0.03]
[1737202721669,19.87748175,240.8,240.79,0.03]
[1737202721851,24.03028175,240.8,240.79,0.03]
[1737202723469,20.0,240.77,240.72,0.063]
[1737202723772,19.87748175,240.73,240.72,0.063]
[1737202724647,4.154,240.73,240.72,0.063]
[1737202724859,24.03148175,240.73,240.72,0.063]
[1737202726970,32.10858175,240.73,240.72,0.063]
[1737202727767,55.88546575,240.73,240.72,0.063]
[1737202727975,75.7629475,240.73,240.72,0.063]
[1737202728156,19.87748175,240.73,240.72,0.063]
[1737202729055,19.87748175,240.75,240.72,0.063]
[1737202729260,19.87748175,240.77,240.72,4.2172]
[1737202734561,19.94048175,240.79,240.72,4.2172]
[1737202735375,19.94048175,240.79,240.72,19.94048175]
[1737202735563,19.94048175,240.79,240.74,4.1538]
[1737202736263,19.94048175,240.79,240.73,10.385]
[1737202736470,19.94048175,240.79,240.73,14.539]
[1737202736983,19.94048175,240.79,240.73,4.154]
[1737202737165,0.063,240.79,240.75,43.776884]
[1737202737369,0.063,240.79,240.78,4.1531]
[1737202739982,0.063,240.79,240.75,39.87748175]
[1737202740183,0.063,240.79,240.76,4.1535]
[1737202741484,0.063,240.79,240.77,19.87748175]
[1737202742083,0.063,240.79,240.78,4.1531]
[1737202743260,0.063,240.79,240.73,34.161884]
[1737202743482,19.87748175,240.77,240.72,0.063]
[1737202743979,19.87748175,240.77,240.72,4.2172]
[1737202745286,19.87748175,240.77,240.72,0.063]
[1737202745790,19.87748175,240.75,240.72,0.063]
[1737202746167,4.1536,240.75,240.72,0.063]
[1737202746371,19.87748175,240.73,240.72,0.063]
[1737202746570,43.65436575,240.73,240.72,0.063]
[1737202748266,47.80836575,240.73,240.72,0.063]
[1737202748771,19.87748175,240.73,240.72,0.063]
[1737202750189,19.87748175,240.75,240.72,0.063]
[1737202750380,19.87748175,240.75,240.72,4.2171]
[1737202750690,19.87748175,240.77,240.72,4.2171]
[1737202752388,0.063,240.79,240.75,39.87748175]
[1737202754379,0.063,240.79,240.77,19.87748175]
[1737202754886,0.063,240.79,240.72,11.07132822]
[1737202754887,0.063,240.79,240.73,24.03148175]
[1737202755189,0.063,240.79,240.73,4.154]
[1737202755795,19.87748175,240.78,240.72,0.063]
[1737202756171,19.87748175,240.74,240.72,0.063]
[1737202756382,19.87748175,240.76,240.72,4.2171]
[1737202756779,6.3764,240.79,240.72,4.2171]
[1737202756780,19.87748175,240.78,240.72,4.2171]
[1737202757300,0.063,240.79,240.72,4.2171]
[1737202761580,0.063,240.79,240.72,14.6026]
[1737202764076,0.063,240.79,240.76,24.1535]
[1737202764492,0.063,240.79,240.76,44.03098175]
[1737202765771,7.6152,240.9,240.77,20.0]
[1737202765976,19.87748175,240.84,240.77,20.0]
[1737202766297,19.87748175,240.86,240.78,23.776884]
[1737202766471,0.063,240.79,240.78,23.776884]
[1737202766677,19.87748175,240.86,240.78,23.776884]
[1737202767389,12.41401827,240.86,240.78,23.776884]
[1737202767991,12.41401827,240.86,240.79,4.1529]
[1737202768710,12.41401827,240.86,240.79,14.5353]
[1737202769204,0.063,240.9,240.83,36.19090227]
[1737202769383,12.41401827,240.85,240.79,4.1529]
[1737202769581,4.2141,240.9,240.75,11.9317]
[1737202769582,12.41401827,240.83,240.75,11.9317]
[1737202769785,12.41401827,240.83,240.76,4.1535]
[1737202771502,12.41401827,240.83,240.76,16.56751827]
[1737202772385,12.41401827,240.83,240.72,0.063]
[1737202772386,12.41401827,240.81,240.74,4.1537]
[1737202774500,12.41401827,240.83,240.74,16.56771827]
[1737202774690,12.41401827,240.85,240.76,12.41401827]
[1737202775581,12.41401827,240.85,240.73,10.385]
[1737202775582,18.87611827,240.87,240.78,12.41401827]
[1737202775811,1.6574,240.9,240.8,12.41401827]
[1737202775983,12.41401827,240.89,240.8,12.41401827]
[1737202776603,0.063,240.9,240.82,12.41401827]
[1737202777106,0.063,240.9,240.81,4.1526]
[1737202777107,0.063,240.9,240.84,12.41401827]
[1737202778113,0.063,240.9,240.86,12.41401827]
[1737202778279,0.063,240.9,240.85,14.5318]
[1737202778280,0.063,240.9,240.85,4.1519]
[1737202779513,12.41401827,240.89,240.77,10.3831]
[1737202779718,12.41401827,240.87,240.79,12.36]
[1737202780083,12.41401827,240.85,240.79,16.5129]
[1737202780715,12.41401827,240.85,240.79,12.36]
[1737202780895,12.41401827,240.83,240.78,4.1531]
[1737202781096,4.2141,240.9,240.78,16.56711827]
[1737202781313,0.063,240.9,240.85,20.0]
[1737202781608,0.063,240.9,240.84,12.41401827]
[1737202781811,12.47701827,240.9,240.82,20.0]
[1737202782012,12.47701827,240.9,240.82,32.41401827]
[1737202782314,12.47701827,240.9,240.83,4.1523]
[1737202782896,0.063,240.9,240.84,12.41401827]
[1737202784104,0.063,240.9,240.85,4.1519]
[1737202784305,0.063,240.9,240.86,36.19090227]
[1737202784498,0.063,240.9,240.86,12.41401827]
[1737202786105,0.063,240.9,240.87,4.1516]
[1737202787409,0.063,240.9,240.88,12.41401827]
[1737202787902,0.063,240.9,240.89,23.776884]
[1737202788608,0.063,240.9,240.89,20.0]
[1737202788789,0.063,240.9,240.89,56.19090227]
[1737202790205,0.0001,240.9,240.89,60.34210227]
[1737202790402,0.0001,240.92,240.9,23.776884]
[1737202790583,0.0001,240.92,240.91,12.41401827]
[1737202791003,0.0001,240.92,240.91,36.19090227]
[1737202791205,0.0001,240.92,240.91,37.83650227]
[1737202791793,0.063,241.04,240.95,20.0]
[1737202791995,0.063,241.04,241.0,12.41401827]
[1737202792200,0.063,241.04,241.02,12.41401827]
[1737202792493,0.05591259,241.08,241.02,12.41401827]
[1737202793707,0.05591259,241.08,241.04,12.41401827]
[1737202793893,12.41401827,241.07,240.98,12.41401827]
[1737202794094,0.05591259,241.08,240.94,12.41401827]
[1737202794095,12.41401827,241.03,240.94,12.41401827]
[1737202794295,0.05591259,241.08,240.9,12.41401827]
[1737202794296,12.41401827,240.99,240.9,12.41401827]
[1737202794493,20.0,241.04,240.9,12.41401827]
[1737202794684,12.41401827,240.99,240.88,4.1514]
[1737202794890,12.41401827,240.99,240.92,12.41401827]
[1737202795300,7.5632,241.07,240.95,20.0]
[1737202795496,12.41401827,241.03,240.95,32.41401827]
[1737202795697,19.97721827,241.07,240.97,12.41401827]
[1737202795908,19.97721827,241.07,240.99,12.41401827]
[1737202796303,7.5632,241.07,241.01,12.41401827]
[1737202796497,0.05591259,241.08,241.01,12.41401827]
[1737202797497,12.41401827,241.07,240.98,12.41401827]
[1737202797906,12.41401827,241.05,240.99,4.1495]
[1737202799017,12.41401827,241.07,240.99,4.1495]
[1737202799224,0.05591259,241.08,241.0,12.41401827]
[1737202799421,0.05591259,241.08,241.01,19.82547156]
[1737202799724,0.05591259,241.08,241.03,19.82547156]
[1737202800018,0.05591259,241.08,241.05,19.82547156]
[1737202801196,0.05591259,241.08,241.06,4.1483]
[1737202801410,0.05591259,241.08,241.01,19.82547156]
[1737202801618,0.05591259,241.08,241.01,23.97467156]
[1737202802319,0.05591259,241.08,241.01,4.1492]
[1737202802506,19.82547156,241.07,240.99,23.97487156]
[1737202802707,19.82547156,241.05,240.99,4.1494]
[1737202803613,0.05591259,241.08,240.99,4.1494]
[1737202803614,19.82547156,241.07,240.99,19.82547156]
[1737202804216,0.05591259,241.08,241.01,19.82547156]
[1737202806106,0.05591259,241.08,241.02,4.149]
[1737202808303,0.05591259,241.08,241.03,19.82547156]
[1737202810422,0.05591259,241.08,241.04,4.1486]
[1737202810629,0.05591259,241.08,241.05,43.60235556]
[1737202810802,0.05591259,241.08,241.07,19.82547156]
[1737202811929,0.05591259,241.08,241.07,43.60235556]
[1737202812437,0.05591259,241.08,241.07,47.75045556]
[1737202812807,0.05591259,241.08,241.03,19.82547156]
[1737202813116,0.05591259,241.08,241.03,23.97417156]
[1737202813315,0.05591259,241.08,241.01,19.82547156]
[1737202813622,0.0001,241.09,241.07,203.28694312]
[1737202813922,0.03,241.22,241.16,23.776884]
[1737202814125,0.0001,241.21,241.2,63.42782712]
[1737202814512,0.0001,241.21,241.2,67.57372712]
[1737202814822,0.0001,241.22,241.2,67.57372712]
[1737202815027,0.0001,241.22,241.21,24.39843111]
[1737202817438,6.3549,241.48,241.29,20.0]
[1737202817621,20.0,241.51,241.46,19.82547156]
[1737202817810,21.61054456,241.51,241.5,43.60235556]
[1737202818136,21.61054456,241.51,241.48,19.82547156]
[1737202818437,21.61054456,241.51,241.5,19.82547156]
[1737202818625,20.0,241.51,241.5,19.82547156]
[1737202819814,20.0,241.51,241.33,12.46]
[1737202819815,20.0,241.51,241.43,19.82547156]
[1737202820131,19.82547156,241.49,241.41,19.82547156]
[1737202820437,39.82547156,241.51,241.41,19.82547156]
[1737202820641,39.82547156,241.51,241.43,19.82547156]
[1737202820934,20.0,241.51,241.45,19.82547156]
[1737202821433,20.0,241.51,241.43,19.82547156]
[1737202821609,20.0,241.51,241.49,19.82547156]
[1737202822534,20.0,241.51,241.5,23.776884]
[1737202822935,20.0,241.51,241.5,27.917584]
[1737202824117,20.0,241.51,241.33,137.3]
[1737202824318,20.0,241.51,241.5,19.82547156]
[1737202824917,20.0,241.51,241.5,43.60235556]
[1737202825232,20.0,241.51,241.46,19.82547156]
[1737202825539,20.0,241.51,241.44,19.82547156]
[1737202826228,19.82547156,241.48,241.4,19.82547156]
[1737202826418,19.82547156,241.46,241.38,19.82547156]
[1737202826737,19.82547156,241.44,241.36,19.82547156]
[1737202826931,19.82547156,241.42,241.34,19.82547156]
[1737202827231,19.82547156,241.36,241.28,19.82547156]
[1737202827437,19.82547156,241.34,241.26,19.82547156]
[1737202828526,4.1434,241.35,241.26,19.82547156]
[1737202828830,19.82547156,241.29,241.21,0.6845678]
[1737202829019,19.82547156,241.27,241.21,0.063]
[1737202829215,1.5951,241.34,241.21,19.88847156]
[1737202829415,1.5951,241.34,241.21,32.22581484]
[1737202830229,20.0,241.32,241.21,0.063]
[1737202830434,32.16281484,241.25,241.21,0.063]
[1737202830835,32.16281484,241.23,241.21,0.063]
[1737202832223,23.776884,241.22,241.21,0.063]
[1737202832423,4.1462,241.18,241.05,36.37421484]
[1737202832622,32.16281484,241.14,241.05,36.37421484]
[1737202833224,4.1462,241.18,241.09,32.16281484]
[1737202833225,32.16281484,241.18,241.09,32.16281484]
[1737202833419,6.6329,241.19,241.12,32.16281484]
[1737202833620,32.16281484,241.22,241.15,23.776884]